Cogmind - Beta 11.1 @@@ ROGUE MODE // 2022.06.30 @ 09:13:27 Player: Cyurio Result: Destroyed by as-80653 with Assembled Heavy Rifle Performance ------------- Evolutions (3) 1500 Regions Visited (10) 2000 Robots Destroyed (14) 70 Value Destroyed (183) 183 Prototype IDs (27) 540 Alien Tech Used (0) 0 Bonus (800) 800 TOTAL SCORE: 5093 Bonus ------- Aligned with FarCom 300 Triggered Deep Caves Wall 500 Cogmind --------- Core Integrity 0/700 Matter 115/300 Energy 72/100 System Corruption 0% Temperature Cool (55) Movement Core (50) Location -6/Deep Caves Parts ------- > --- POWER (1) -------- (None) > --- PROPULSION (5) --- (None) > --- UTILITY (5) ------ Visual Processing Unit Improved Melee Analysis Suite > --- WEAPON (2) ------- CR-A16's Pointy Stick > --- INVENTORY (5) ---- Medium Storage Unit Improved Melee Analysis Suite Force Booster Advanced ECM Suite Peak State ------------ > --- POWER ------------ Micro Nuclear Core > --- PROPULSION ------- Improved VTOL Module Flying Fortress v7 > --- UTILITY ---------- Medium Storage Unit Visual Processing Unit Improved Melee Analysis Suite Transmission Jammer Improved Medium Armor Plating > --- WEAPON ----------- Axe CR-A16's Pointy Stick > --- INVENTORY -------- Micro Nuclear Core Micro Nuclear Core Improved Cesium-ion Thruster Improved Cesium-ion Thruster Improved Cesium-ion Thruster Improved Cesium-ion Thruster Improved Melee Analysis Suite Force Booster Advanced ECM Suite [Rating: 66] Favorites ----------- Power Ion Engine Engine Ion Engine Power Core Micro Nuclear Core Propulsion Aluminum Leg Leg Aluminum Leg Wheel Compact Wheel Flight Unit Flying Fortress v7 Utility Medium Storage Unit Device Weight Redist. System Storage Medium Storage Unit Processor Visual Processing Unit Protection Improved Light Armor Plating Weapon Medium Laser Energy Gun Medium Laser Ballistic Gun Light Assault Rifle Launcher Rocket Launcher Slashing Weapon Mining Claw Piercing Weapon CR-A16's Pointy Stick Build | -11 -10 -10 -10 -9 -8 -8 -7 -7 -6 -6 ------- Run | Scr Mat Min Exi Min Mat Sto Fac Low Zio Dee Slots Evolved 6 | . . . . . 4 . 2 . . . Power . | . . . . . . . . . . . Propulsion 3 | . . . . . 2 . 1 . . . Utility 3 | . . . . . 2 . 1 . . . Weapon . | . . . . . . . . . . . Parts Attached 33 | . 3 . . 1 8 6 7 . 1 7 Power 4 | . . . . . . 1 1 . . 2 Engine 1 | . . . . . . 1 . . . . Core 3 | . . . . . . . 1 . . 2 Reactor . | . . . . . . . . . . . Propulsion 11 | . . . . 1 5 . 1 . . 4 Treads . | . . . . . . . . . . . Leg . | . . . . . . . . . . . Wheel 1 | . . . . 1 . . . . . . Hover . | . . . . . . . . . . . Flight 10 | . . . . . 5 . 1 . . 4 Utility 10 | . 2 . . . 2 1 4 . . 1 Device 3 | . 1 . . . . . 2 . . . Storage 1 | . 1 . . . . . . . . . Processor 4 | . . . . . 2 . 2 . . . Hackware . | . . . . . . . . . . . Protection 2 | . . . . . . 1 . . . 1 Artifact . | . . . . . . . . . . . Weapon 8 | . 1 . . . 1 4 1 . 1 . Energy Gun . | . . . . . . . . . . . Energy Cannon . | . . . . . . . . . . . Ballistic Gun 2 | . 1 . . . . 1 . . . . Ballistic Cannon . | . . . . . . . . . . . Launcher 1 | . . . . . . 1 . . . . Special Weapon . | . . . . . . . . . . . Impact Weapon . | . . . . . . . . . . . Slashing Weapon 4 | . . . . . 1 2 1 . . . Piercing Weapon 1 | . . . . . . . . . 1 . Special Melee Weapon . | . . . . . . . . . . . Unidentified Prototypes 4 | . . . . . 2 1 1 . . . Parts Lost 16 | . . . . . . 3 . . . 13 Power 4 | . . . . . . 1 . . . 3 Propulsion 6 | . . . . . . . . . . 6 Utility 4 | . . . . . . 1 . . . 3 Weapon 2 | . . . . . . 1 . . . 1 Highest Loss Streak 9 | . . . . . . 3 . . . 9 To Critical Strikes . | . . . . . . . . . . . Average Slot Usage (%) 81 | . 94 100 100 100 62 67 69 . 76 78 Engine 9 | . 14 14 14 14 9 9 2 . . . Core 1 | . . . . . . . 4 . 7 5 Leg 10 | . 28 28 28 14 . . . . . . Wheel 2 | . . . . 14 . . . . . . Flight 6 | . . . . . 9 9 15 . 15 23 Device 9 | . 8 14 14 14 9 4 7 . 7 6 Storage 10 | . 14 14 14 14 9 9 7 . 7 7 Processor 9 | . . . . . 17 17 15 . 15 15 Protection 2 | . . . . . . 4 7 . 7 3 Energy Gun 7 | . 26 14 14 14 . . . . . . Ballistic Gun 4 | . 1 14 14 14 . . . . . . Slashing Weapon 4 | . . . . . 8 8 7 . 8 6 Naked Turns . | . . . . . . . . . . . Heaviest Build 30 | 13 18 18 18 18 18 24 26 25 26 30 Greatest Support 56 | 20 26 26 26 22 56 56 55 55 55 55 Greatest Overweight (x) . | . . . . . . . . . . . Average Overweight (x) . | . . . . . . . . . . . Largest Inventory Capacity 10 | . 10 10 10 10 10 10 10 10 10 10 Average Capacity 9 | . 9 10 10 10 10 10 10 10 10 9 Most Carried 10 | . 10 10 10 10 10 10 10 10 10 10 Average Carried 9 | . 7 10 9 9 9 9 8 10 10 7 Final Capacity 10 | 8 10 10 10 10 10 10 10 10 10 5 Final Carried 10 | 6 10 10 10 10 10 9 10 10 10 4 Class Distribution -------------------- 96% | Mutant 3% | Sprinter Dominant Class ---------------- Mutant | -10/Materials Mutant | -10/Mines Mutant | -10/Exiles Mutant | -9/Mines Mutant | -8/Materials Mutant | -8/Storage Mutant | -7/Factory Mutant | -7/Lower Caves Mutant | -6/Zion Sprinter | -6/Deep Caves Resources | -11 -10 -10 -10 -9 -8 -8 -7 -7 -6 -6 ----------- Run | Scr Mat Min Exi Min Mat Sto Fac Low Zio Dee Matter Collected 419 | 200 13 . . 27 60 119 . . . . Remotely . | . . . . . . . . . . . Salvage Created 262 | . 126 . . . 86 50 . . . . Parts 25 | . 10 . . . 3 12 . . . . Haulers Intercepted 1 | . 1 . . . . . . . . . Recyclers Shooed . | . . . . . . . . . . . Parts Field Recycled . | . . . . . . . . . . . Retrieved Matter . | . . . . . . . . . . . Parts Self-Destructed . | . . . . . . . . . . . Prevented . | . . . . . . . . . . . Kills | -11 -10 -10 -10 -9 -8 -8 -7 -7 -6 -6 ------- Run | Scr Mat Min Exi Min Mat Sto Fac Low Zio Dee Combat Hostiles Destroyed 12 | . 5 . . . . 7 . . . . Guns 5 | . 5 . . . . . . . . . AOE 7 | . . . . . . 7 . . . . Classes Destroyed 4 | . 2 . . . 1 1 . . . . Hauler 1 | . 1 . . . . . . . . . Recycler 1 | . . . . . 1 . . . . . Swarmer 11 | . 5 . . . . 6 . . . . Sentry 1 | . . . . . . 1 . . . . Best Kill Streak 7 | . 3 . . . 1 7 . . . . Combat Bots Only 7 | . 3 . . . . 7 . . . . Max Kills in Single Turn 3 | . 1 . . . 1 3 . . . . Gunslinging . | . . . . . . . . . . . Exploded 3 | . . . . . . 3 . . . . Melee . | . . . . . . . . . . . Uniques/NPCs Destroyed . | . . . . . . . . . . . Combat | -11 -10 -10 -10 -9 -8 -8 -7 -7 -6 -6 -------- Run | Scr Mat Min Exi Min Mat Sto Fac Low Zio Dee Damage Taken 3084 | . 127 . . . 31 1026 . . . 1900 Core 840 | . 8 . . . . 132 . . . 700 Absorbed by Shields . | . . . . . . . . . . . Core Remaining (%) 90 | 100 . . . 96 . 76 . . . . Volleys Fired 31 | . 17 . . . . 14 . . . . Largest 2 | . 2 . . . . 1 . . . . Hottest 90 | . 90 . . . . 33 . . . . Shots Fired 48 | . 34 . . . . 14 . . . . Gun 34 | . 34 . . . . . . . . . Cannon . | . . . . . . . . . . . Launcher 14 | . . . . . . 14 . . . . Special . | . . . . . . . . . . . Kinetic . | . . . . . . . . . . . Thermal 34 | . 34 . . . . . . . . . Explosive 14 | . . . . . . 14 . . . . Electromagnetic . | . . . . . . . . . . . Robot Hit Streak 3 | . 3 . . . . 1 . . . . Robot Miss Streak 4 | . 4 . . . . 4 . . . . Penetration Max . | . . . . . . . . . . . Secondary Targets 1 | . 1 . . . . . . . . . Max Gunslinging Chain 1 | . 1 . . . . . . . . . Shots Hit Robots 15 | . 13 . . . 1 1 . . . . Core Hits 20 | . 7 . . . 1 12 . . . . Critical Kills . | . . . . . . . . . . . Critical Parts Destroyed . | . . . . . . . . . . . Critical Strikes . | . . . . . . . . . . . Melee Attacks 16 | . . . . . 6 10 . . . . Impact . | . . . . . . . . . . . Slashing 16 | . . . . . 6 10 . . . . Piercing . | . . . . . . . . . . . Sneak Attacks 1 | . . . . . 1 . . . . . Combat Hostiles . | . . . . . . . . . . . Follow-up Attacks . | . . . . . . . . . . . Damage Inflicted 629 | . 155 . . . 50 424 . . . . Guns 155 | . 155 . . . . . . . . . Cannons . | . . . . . . . . . . . Explosions 424 | . . . . . . 424 . . . . Melee 50 | . . . . . 50 . . . . . Ramming . | . . . . . . . . . . . Kinetic . | . . . . . . . . . . . Thermal 155 | . 155 . . . . . . . . . Explosive 424 | . . . . . . 424 . . . . Electromagnetic . | . . . . . . . . . . . Impact . | . . . . . . . . . . . Slashing 50 | . . . . . 50 . . . . . Piercing . | . . . . . . . . . . . Highest Corruption 5 | . . . . . . 5 . . . . Average Corruption 1 | . . . . . . 1 . . . . Corruption Purged . | . . . . . . . . . . . Corruption Blocked . | . . . . . . . . . . . Overload Shots . | . . . . . . . . . . . Overflow Damage 43 | . . . . . . 43 . . . . Projectiles . | . . . . . . . . . . . Explosions 43 | . . . . . . 43 . . . . Melee . | . . . . . . . . . . . Knockbacks . | . . . . . . . . . . . Impact . | . . . . . . . . . . . Kinetic . | . . . . . . . . . . . Secondary . | . . . . . . . . . . . Self-Inflicted Damage 87 | . . . . . . 87 . . . . Shots 3 | . . . . . . 3 . . . . Rammed . | . . . . . . . . . . . Targets Rammed . | . . . . . . . . . . . Kicked . | . . . . . . . . . . . Crushed . | . . . . . . . . . . . Highest Temperature 240 | . 240 . . . 10 17 . . . 186 Average Temperature 77 | . 80 . . . 10 9 . . . 93 Received Heat Transfer 756 | . . . . . 27 351 . . . 378 Siege Activations . | . . . . . . . . . . . Robots Corrupted . | . . . . . . . . . . . Combat Hostiles . | . . . . . . . . . . . Parts Fried . | . . . . . . . . . . . Impact Corruptions . | . . . . . . . . . . . Robots Melted . | . . . . . . . . . . . Combat Hostiles . | . . . . . . . . . . . Parts Melted 3 | . 3 . . . . . . . . . Heat Transferred 409 | . 409 . . . . . . . . . Parts Sabotaged . | . . . . . . . . . . . Parts Stolen . | . . . . . . . . . . . Parts Stripped . | . . . . . . . . . . . Power Chain Reactions . | . . . . . . . . . . . Missiles Intercepted . | . . . . . . . . . . . Alert | -11 -10 -10 -10 -9 -8 -8 -7 -7 -6 -6 ------- Run | Scr Mat Min Exi Min Mat Sto Fac Low Zio Dee Peak Influence 686 | . 199 77 . . 90 686 324 . . . Initial 309 | . . 77 . . . 37 309 . . . Average 144 | . 110 77 . . 20 334 309 . . . Maximum Alert Level 2 | . . . . . . 2 1 . . . Low Security (%) 74 | . 100 100 . 100 100 45 . . . . Level 1 13 | . . . . . . 6 100 . . . Level 2 11 | . . . . . . 47 . . . . Level 3 . | . . . . . . . . . . . Level 4 . | . . . . . . . . . . . Level 5 . | . . . . . . . . . . . High Security . | . . . . . . . . . . . Max Security . | . . . . . . . . . . . Squads Dispatched 7 | . . . . . . 6 1 . . . Investigation 3 | . . . . . . 2 1 . . . Extermination . | . . . . . . . . . . . Reinforcement 2 | . . . . . . 2 . . . . Assault 2 | . . . . . . 2 . . . . Garrison . | . . . . . . . . . . . Intercept . | . . . . . . . . . . . Searches Triggered . | . . . . . . . . . . . Construction Impeded . | . . . . . . . . . . . Haulers Reinforced . | . . . . . . . . . . . Active Scanning Responses . | . . . . . . . . . . . Cargo Convoy Interrupts . | . . . . . . . . . . . Stealth | -11 -10 -10 -10 -9 -8 -8 -7 -7 -6 -6 --------- Run | Scr Mat Min Exi Min Mat Sto Fac Low Zio Dee Distress Signals 3 | . . . . . 1 2 . . . . Communications Jammed . | . . . . . . . . . . . Distress Signals . | . . . . . . . . . . . Times Spotted 101 | . 8 . . . 4 42 . . . 47 Peak Tracking Total 42 | . 3 . . . 5 17 . . . 42 Tactical Retreats 11 | . 1 . . . . 8 . . . 2 Traps | -11 -10 -10 -10 -9 -8 -8 -7 -7 -6 -6 ------- Run | Scr Mat Min Exi Min Mat Sto Fac Low Zio Dee Traps Triggered . | . . . . . . . . . . . Indirectly . | . . . . . . . . . . . Trap Hack Attempts . | . . . . . . . . . . . Triggered . | . . . . . . . . . . . Disarmed . | . . . . . . . . . . . Reprogrammed . | . . . . . . . . . . . Reused . | . . . . . . . . . . . Traps Extracted . | . . . . . . . . . . . Installed . | . . . . . . . . . . . Triggered . | . . . . . . . . . . . Machines | -11 -10 -10 -10 -9 -8 -8 -7 -7 -6 -6 ---------- Run | Scr Mat Min Exi Min Mat Sto Fac Low Zio Dee Machines Disabled 2 | . . . . . . 2 . . . . Max in Single Turn 1 | . . . . . . 1 . . . . Machines Sabotaged . | . . . . . . . . . . . Garrisons Compromised . | . . . . . . . . . . . Overloaded Fab Kills . | . . . . . . . . . . . Hacking | -11 -10 -10 -10 -9 -8 -8 -7 -7 -6 -6 --------- Run | Scr Mat Min Exi Min Mat Sto Fac Low Zio Dee Machines Accessed 17 | . 2 . 1 . 2 8 4 . . . Terminals 15 | . 2 . . . 2 8 3 . . . Fabricators . | . . . . . . . . . . . Repair Stations . | . . . . . . . . . . . Recycling Units . | . . . . . . . . . . . Scanalyzers . | . . . . . . . . . . . Garrison Access 1 | . . . . . . . 1 . . . Total Hacks 35 | . 7 . 1 . 4 16 7 . . . Successful 17 | . 6 . 1 . 1 8 1 . . . Failed 18 | . 1 . . . 3 8 6 . . . Catastrophic 2 | . . . . . . 1 1 . . . Database Lockouts . | . . . . . . . . . . . Manual 27 | . 7 . 1 . 4 7 4 . 4 . Terminals 32 | . 7 . . . 4 16 5 . . . Fabricators . | . . . . . . . . . . . Repair Stations . | . . . . . . . . . . . Recycling Units . | . . . . . . . . . . . Scanalyzers . | . . . . . . . . . . . Garrison Access 2 | . . . . . . . 2 . . . Terminal Hacks 7 | . 2 . 1 . . 4 . . . . Open Door 2 | . . . . . . 2 . . . . Level Access Points 1 | . 1 . . . . . . . . . Branch Access Points 1 | . 1 . . . . . . . . . Emergency Access Points 1 | . . . . . . 1 . . . . Locate Traps 1 | . . . . . . 1 . . . . EX-Prototype ID Bank 1 | . . . 1 . . . . . . . Fabricator Hacks . | . . . . . . . . . . . Repair Station Hacks . | . . . . . . . . . . . Recycling Unit Hacks . | . . . . . . . . . . . Scanalyzer . | . . . . . . . . . . . Garrison Access Hacks . | . . . . . . . . . . . Unauthorized Hacks 10 | . 4 . . . 1 4 1 . . . Terminals 10 | . 4 . . . 1 4 1 . . . Track 2 | . 1 . . . . 1 . . . . Assimilate 1 | . 1 . . . . . . . . . Botnet 7 | . 2 . . . 1 3 1 . . . Fabricators . | . . . . . . . . . . . Repair Stations . | . . . . . . . . . . . Recycling Units . | . . . . . . . . . . . Scanalyzers . | . . . . . . . . . . . Garrison Access . | . . . . . . . . . . . Data Cores Recovered . | . . . . . . . . . . . Used . | . . . . . . . . . . . Hacking Detections 12 | . 1 . . . 2 6 3 . . . Full Trace Events 3 | . . . . . . 2 1 . . . Feedback Events 1 | . . . . . . 1 . . . . Corruption 1 | . . . . . . 1 . . . . Feedback Blocked . | . . . . . . . . . . . Robot Schematics Acquired . | . . . . . . . . . . . Robots Built . | . . . . . . . . . . . Authchips . | . . . . . . . . . . . Time . | . . . . . . . . . . . Total Robot Build Rating . | . . . . . . . . . . . Part Schematics Acquired . | . . . . . . . . . . . Parts Built . | . . . . . . . . . . . Authchips . | . . . . . . . . . . . Time . | . . . . . . . . . . . Total Part Build Rating . | . . . . . . . . . . . Parts Repaired . | . . . . . . . . . . . Time . | . . . . . . . . . . . Parts Recycled . | . . . . . . . . . . . Recycled Matter . | . . . . . . . . . . . Retrieved Matter . | . . . . . . . . . . . Retrieved Components . | . . . . . . . . . . . Parts Scanalyzed . | . . . . . . . . . . . Part Schematics Acquired . | . . . . . . . . . . . Parts Damaged . | . . . . . . . . . . . Bothacking | -11 -10 -10 -10 -9 -8 -8 -7 -7 -6 -6 ------------ Run | Scr Mat Min Exi Min Mat Sto Fac Low Zio Dee Used RIF Installer . | . . . . . . . . . . . Robots Hacked . | . . . . . . . . . . . Non-combat . | . . . . . . . . . . . Combat . | . . . . . . . . . . . Robot Hacks Applied . | . . . . . . . . . . . Relay Couplers Released . | . . . . . . . . . . . Fabnet Peak Effective % . | . . . . . . . . . . . Robots Rewired . | . . . . . . . . . . . Allies Hacked . | . . . . . . . . . . . Hacks Repelled . | . . . . . . . . . . . Allies | -11 -10 -10 -10 -9 -8 -8 -7 -7 -6 -6 -------- Run | Scr Mat Min Exi Min Mat Sto Fac Low Zio Dee Total Allies 2 | . . . . . . 2 . . . . Largest Group 2 | . . . . . . 2 1 . . . Highest-Rated Group 62 | . . . . . . 62 31 . . . Highest-Rated Ally 31 | . . . . . . 31 31 . . . Total Orders . | . . . . . . . . . . . Ally Attacks 12 | . . . . . . 11 1 . . . Total Damage 231 | . . . . . . 211 20 . . . Kills . | . . . . . . . . . . . Allies Corrupted . | . . . . . . . . . . . Allies Melted . | . . . . . . . . . . . Intel | -11 -10 -10 -10 -9 -8 -8 -7 -7 -6 -6 ------- Run | Scr Mat Min Exi Min Mat Sto Fac Low Zio Dee Robot Analysis Total . | . . . . . . . . . . . Derelict Logs Recovered . | . . . . . . . . . . . Drone Launches . | . . . . . . . . . . . Drone Recoveries . | . . . . . . . . . . . Exploration | -11 -10 -10 -10 -9 -8 -8 -7 -7 -6 -6 ------------- Run | Scr Mat Min Exi Min Mat Sto Fac Low Zio Dee Turns Passed 2033 | . 271 14 275 331 333 368 181 5 121 134 Spaces Moved 2704 | 1 161 12 227 327 288 560 414 13 304 397 Core 8 | . . . . . . . . . . 8 Treads . | . . . . . . . . . . . Legs 401 | 1 161 12 227 . . . . . . . Wheels 327 | . . . . 327 . . . . . . Hover . | . . . . . . . . . . . Flight 1968 | . . . . . 288 560 414 13 304 389 Fastest Speed 23 | 120 120 120 120 100 50 50 39 39 39 23 Average Speed 60 | 120 120 120 120 100 50 50 39 39 39 31 Slowest Speed 120 | 120 120 120 120 100 50 50 39 39 39 50 Overloaded Moves . | . . . . . . . . . . . Propulsion Burnouts . | . . . . . . . . . . . Robots Hopped 31 | . . . . . . 29 2 . . . Cave-ins Triggered . | . . . . . . . . . . . Exploration Rate (%) 39 | 3 35 5 63 78 24 88 13 3 46 78 Regions Visited 10 Branch Regions 7 Pre-discovered Areas . | . . . . . . . . . . . Known Exits Taken 1 | . 1 . . . . . . . . . Unknown Exits Taken 9 | 1 . 1 1 1 1 1 1 1 1 . Scrap Searched 1 | . . . . 1 . . . . . . Spaces Dug 33 | . . . . . 5 28 . . . . Terrain Destroyed 137 | . . . . . 5 132 . . . . Melee 11 | . . . . . 5 6 . . . . Projectile . | . . . . . . . . . . . AOE 126 | . . . . . . 126 . . . . Terrain Rammed . | . . . . . . . . . . . Walls Destroyed . | . . . . . . . . . . . Machines Disabled . | . . . . . . . . . . . Actions | -11 -10 -10 -10 -9 -8 -8 -7 -7 -6 -6 --------- Run | Scr Mat Min Exi Min Mat Sto Fac Low Zio Dee Total 2990 | . 208 11 231 331 470 584 430 12 305 408 Wait 170 | . 7 . . . 143 17 . . . 3 Move 2642 | . 160 11 226 326 287 511 409 12 303 397 Hop 21 | . . . . . . 19 2 . . . Pick Up 39 | . 12 . 1 2 12 4 8 . . . Fast Attach 5 | . 1 . . . 2 . 1 . 1 . Attach 18 | . . . . . 6 2 3 . . 7 Detach 4 | . . . . . 3 . . . . 1 Swap 10 | . 2 . . 1 . 4 3 . . . Drop 34 | . 9 . 4 2 11 3 4 . 1 . Fire 31 | . 17 . . . . 14 . . . . Melee 16 | . . . . . 6 10 . . . . Ram . | . . . . . . . . . . . Kick . | . . . . . . . . . . . Crush . | . . . . . . . . . . . Escape Stasis . | . . . . . . . . . . . Rewire . | . . . . . . . . . . . Trap . | . . . . . . . . . . . Miscellaneous . | . . . . . . . . . . . Route ------- -11/Scrapyard -10/Materials (discovered 5 exits: *Mat x3 / *Min x2) -10/Mines -10/Exiles (discovered 2 exits: [*Min x2]) -9/Mines -8/Materials -8/Storage -7/Factory -7/Lower Caves -6/Zion (discovered 2 exits: [*Dee] / [*Pro]) -6/Deep Caves History --------- Turn | Location | Event 1 | -11/Scrapyard | Discovered new exit (range 0) 1 | -11/Scrapyard | Entered Materials 133 | -10/Materials | Discovered new exit (range 10) 185 | -10/Materials | Identified exit to Materials 185 | -10/Materials | Identified exit to Mines 272 | -10/Materials | Entered Mines 281 | -10/Mines | Deemed a non-threat by the Exiles lab entrance 281 | -10/Mines | Discovered new exit (range 5) 286 | -10/Mines | Entered Exiles 303 | -10/Exiles | Build established: Mutant 304 | -10/Exiles | Discovered new exit (range 15) 319 | -10/Exiles | Met 8R-AWN 334 | -10/Exiles | Met EX-HEX 369 | -10/Exiles | Met EX-BIN 386 | -10/Exiles | Aligned with FarCom system 387 | -10/Exiles | Given EX-Vault access code 415 | -10/Exiles | Opened EX-Vault 425 | -10/Exiles | Found Flying Fortress v7 450 | -10/Exiles | Warned to stay clear of 0b10 Research branches 485 | -10/Exiles | Met EX-DEC 545 | -10/Exiles | Discovered new exit (range 10) 561 | -10/Exiles | Left Exiles lab with Flying Fortress v7 561 | -10/Exiles | Entered Mines 592 | -9/Mines | Met a Derelict bent on vengeance 837 | -9/Mines | Received a Rocket Launcher from a helpful Derelict 884 | -9/Mines | Discovered new exit (range 9) 892 | -9/Mines | Entered Materials 892 | -8/Materials | Evolved 4 slots: Propulsion x2, Utility x2 1214 | -8/Materials | Discovered new exit (range 11) 1225 | -8/Materials | Entered Storage 1423 | -8/Storage | Destroyed 7 combat bots 1559 | -8/Storage | Discovered new exit (range 17) 1570 | -8/Storage | Met a pair of Derelict thieves 1593 | -8/Storage | Entered Factory 1593 | -7/Factory | Accompanied by 1 ally 1593 | -7/Factory | Evolved 2 slots: Propulsion x1, Utility x1 1619 | -7/Factory | Lost 3 parts (1p1u1w) 1725 | -7/Factory | Discovered new exit (range 5) 1774 | -7/Factory | Entered Lower Caves 1775 | -7/Lower Caves | A Derelict revealed a hidden shortcut to a safe place 1779 | -7/Lower Caves | Entered Zion 1793 | -6/Zion | Given A8's code to call for help 1803 | -6/Zion | Found CR-A16's Pointy Stick 1808 | -6/Zion | Discovered new exit (range 17) 1819 | -6/Zion | Acquired unknown access codes intercepted by a Zionite 1892 | -6/Zion | Opened final containment barrier to the Deep Caves 1898 | -6/Zion | Discovered new exit (range 5) 1899 | -6/Zion | Saw the warning signs outside the Deep Caves entrance 1900 | -6/Zion | Entered Deep Caves 1950 | -6/Deep Caves | Attacked by Z-Imprinter 1951 | -6/Deep Caves | Z-Facility disabled 2009 | -6/Deep Caves | Lost 4 parts (1p1n2u) 2017 | -6/Deep Caves | Spotted as-79233 2020 | -6/Deep Caves | Spotted as-12809 2021 | -6/Deep Caves | Triggered Deep Caves wall 2021 | -6/Deep Caves | Spotted AS-48833 2021 | -6/Deep Caves | Spotted AS-04308 2030 | -6/Deep Caves | Core integrity fell below 50% 2034 | -6/Deep Caves | Core integrity fell below 20% 2034 | -6/Deep Caves | Destroyed by as-80653 with Assembled Heavy Rifle Last Messages --------------- 01951_ Z-Facility disabled. 01968_ Imp. Light Armor Plating destroyed. 01973_ Flying Fortress v7 destroyed. 01976_ Imp. Medium Armor Plating destroyed. 01978_ Mic. Nuclear Core destroyed. 02021_ The wall dematerializes. [Achievement: That's One Door That Should Stay Closed] 02022_ Transmission Jammer destroyed. 02022_ Axe destroyed. 02023_ as-12809: "DSI9AT1D G8OHIBQ29FWG 26R186 QD12WHW8W33 TDK1 81FTS" 02024_ Mic. Nuclear Core destroyed. 02026_ PA-XGQ(b) destroyed. 02027_ Imp. Cesium-ion Thruster destroyed. 02029_ as-79233: "DSI9AT1D G8OHIBQ29FWG 26R186 QD12WHW8W33 TDK1 81FTS" 02029_ Imp. Cesium-ion Thruster destroyed. 02029_ Imp. VTOL Module destroyed. 02029_ Imp. Cesium-ion Thruster destroyed. 02031_ as-82753 suffers critical hit (Destroy). 02031_ as-82753 destroyed. 02032_ Imp. Cesium-ion Thruster destroyed. Map ----- +----------------------------------------------------+ | ????????"" ##? #??????????????? | | ??????### ### ####???????????? | | ????""" # #???????????? | | ??" = = ##?????????????? | | ??" = ###???????????? | | ??" #???????????? | | ??" = = ###???????????# | | ??" "#??????????? | | ??" = * #??????????? | | ??" aa * ##?????????? | | ???"""" a a / "#?????????? | | ??????### a aa* * % #???????????? | | ????????"" aaaa a I #????????????? | | ?????????" *aaa #????????????? | | ?????????" * a a #????????????? | | ?????????" aa * ##???????????? | | ????????"" = a* #???????????? | | ????????# h aa #???????????? | | ????????" a = M #???????????? | | ????????" G = ############# | | ????????" = = | | ????????""" = | | ????????" h | | ????????"" ############# | | ????????" #???????????? | | ????????"" @ ##???????????? | | ????????" # # #????????????? | | ????????" #### ## ## ##????????????? | | ????????""" ##???# ## ####?????????????? | | ?????????" ?????#### #????????????????? | | ?????????####??????????#?????????????????? | | | | | | | | | | | | | | | | | | | | | | | | | | | | | | | | | | | | | | | +----------------------------------------------------+ Best States ------------- Heat Dissipation 34 Energy Generation 15 Energy Capacity 250 Matter Stores 300 Matter Capacity 300 Sight Range 18 Terrain Scan Density 10 Jamming Range 12 Additional Mass Support 6 Armor Coverage 225 Evasion (%) 64 Melee Accuracy 6 Force Boost 20 Item Schematics ----------------- None Robot Schematics ------------------ None Fabricated ------------ Nothing Alien Tech Used ----------------- None Achievements -------------- Adventurer Cya! Signs Are For Wimps That's One Door That Should Stay Closed Challenges ------------ None Game ------ Seed WeightLauncherTriangulator Manual? 0 Play Time 00:37:06 Cumulative 52.7 hours Start 2022.06.30 @ 08:34:24 End 2022.06.30 @ 09:13:27 Sessions 1 Manual Loads 0 Difficulty Rogue Special Mode None Game No. 84 Rogue 84 Adventurer 0 Explorer 0 Win Type - Total 0 Types 0/0/0/0/0/0/0/0/0 Lore% 33 Gallery% 37 Achievement% 31 Wizard Run 0 Options --------- ASCII 0 Keyboard 1 Movement Vi Keybinds 1 Fullscreen 1 Font 24/Smallcaps Map View 76x50 Tactical HUD 1 Map Filters NONE Filters NONE Steam 1 RUN: 0b03a02c-1c60-49ed-8f03-73a82e3ab67c